bitfinex/quotes_SOLUSD_20250624
["timestamp","ask_amount","ask_price","bid_price","bid_amount"]
[1750745061591,5.55165137,145.55,145.54,10.0]
[1750745062111,5.55165137,145.55,145.54,9.5]
[1750745062414,9.28414992,145.55,145.54,9.5]
[1750745062617,16.16414992,145.55,145.5,26.16666667]
[1750745062788,9.28414992,145.51,145.5,26.16666667]
[1750745062988,6.88,145.55,145.51,9.5]
[1750745063204,9.28414992,145.52,145.51,9.5]
[1750745063711,9.28414992,145.52,145.5,26.16666667]
[1750745063887,9.28414992,145.51,145.5,16.66666667]
[1750745064992,6.88,145.55,145.5,16.66666667]
[1750745065402,9.28414992,145.51,145.5,16.66666667]
[1750745065985,9.28414992,145.51,145.5,16.16666667]
[1750745066899,10.87114992,145.51,145.5,16.16666667]
[1750745069208,38.8049487,145.51,145.5,16.16666667]
[1750745069714,38.8049487,145.51,145.5,15.66666667]
[1750745069920,18.64964886,145.5,145.43,9.5]
[1750745070089,9.28414992,145.44,145.43,9.5]
[1750745070698,6.76,145.48,145.43,9.5]
[1750745070897,6.76,145.48,145.46,9.5]
[1750745071096,1.587,145.51,145.47,9.5]
[1750745071287,9.28414992,145.48,145.45,9.5]
[1750745071490,1.587,145.51,145.47,9.5]
[1750745071906,1.587,145.51,145.45,9.5]
[1750745072508,9.28414992,145.46,145.45,9.5]
[1750745072886,9.28414992,145.46,145.44,9.5]
[1750745073095,9.28414992,145.45,145.44,9.5]
[1750745074105,9.28414992,145.45,145.43,9.0]
[1750745074306,9.28414992,145.44,145.41,9.0]
[1750745074507,9.28414992,145.42,145.4,9.0]
[1750745074708,9.28414992,145.41,145.4,9.0]
[1750745074889,6.4745,145.48,145.4,9.0]
[1750745074890,9.28414992,145.42,145.4,9.0]
[1750745075212,9.28414992,145.44,145.43,9.0]
[1750745076091,9.28414992,145.44,145.42,9.0]
[1750745076300,9.28414992,145.43,145.42,9.0]
[1750745076518,9.28414992,145.43,145.41,9.0]
[1750745076915,9.28414992,145.42,145.41,9.0]
[1750745078128,9.28414992,145.42,145.36,257.04964886]
[1750745078129,9.28414992,145.42,145.4,9.0]
[1750745078314,20.1083268,145.48,145.4,9.0]
[1750745078315,18.64964886,145.47,145.4,9.0]
[1750745078623,9.28414992,145.41,145.4,9.0]
[1750745079517,9.28414992,145.42,145.41,9.0]
[1750745079925,13.2345,145.48,145.42,9.0]
[1750745080100,6.4745,145.48,145.43,9.0]
[1750745080325,9.28414992,145.45,145.43,9.0]
[1750745080629,6.4745,145.48,145.43,9.0]
[1750745080630,9.28414992,145.44,145.43,9.0]
[1750745083957,5.85198325,145.49,145.43,9.0]
[1750745084161,5.85198325,145.49,145.45,9.0]
[1750745084162,9.28414992,145.46,145.45,9.0]
[1750745084345,5.57587,145.46,145.45,9.0]
[1750745085548,5.85198325,145.49,145.45,9.0]
[1750745085742,5.57587,145.46,145.45,9.0]
[1750745086562,5.57587,145.47,145.44,9.0]
[1750745086741,5.57587,145.47,145.46,9.0]
[1750745086941,15.21944959,145.51,145.44,9.0]
[1750745087142,5.57587,145.46,145.45,9.0]
[1750745088478,5.57587,145.46,145.44,9.0]
[1750745088765,6.8729287,145.5,145.45,9.0]
[1750745089769,5.57587,145.46,145.44,9.0]
[1750745089970,5.57587,145.45,145.44,8.5]
[1750745093763,8.347,145.51,145.45,8.5]
[1750745093962,8.347,145.51,145.46,8.5]
[1750745094182,5.57587,145.47,145.46,8.5]
[1750745094695,5.57587,145.47,145.45,8.5]
[1750745094875,5.57587,145.47,145.46,8.5]
[1750745095272,5.57587,145.47,145.45,8.5]
[1750745095476,8.347,145.51,145.46,8.5]
[1750745096564,5.57587,145.47,145.46,8.5]
[1750745098092,5.57587,145.47,145.45,8.5]
[1750745098290,5.57587,145.46,145.44,8.5]
[1750745098499,5.57587,145.45,145.44,8.5]
[1750745098795,5.57587,145.45,145.43,8.5]
[1750745099089,5.57587,145.44,145.41,8.5]
[1750745099284,5.57587,145.42,145.41,8.5]
[1750745099479,5.57587,145.42,145.4,8.5]
[1750745099680,5.57587,145.42,145.41,8.5]
[1750745099889,5.57587,145.42,145.4,8.5]
[1750745100087,5.57587,145.42,145.39,6.3592]
[1750745100088,5.57587,145.42,145.41,8.5]
[1750745100595,5.57587,145.42,145.4,8.5]
[1750745100797,5.57587,145.42,145.41,8.5]
[1750745100976,5.57587,145.42,145.38,8.5]
[1750745101167,5.57587,145.39,145.37,8.5]
[1750745101372,5.57587,145.38,145.37,8.5]
[1750745102366,20.61454713,145.44,145.37,8.5]
[1750745102567,5.57587,145.39,145.38,8.5]
[1750745103599,5.57587,145.39,145.36,8.5]
[1750745103788,5.57587,145.37,145.36,8.5]
[1750745103992,19.37014,145.37,145.31,1.4759519]
[1750745104298,5.57587,145.32,145.31,1.4759519]
[1750745104499,25.52969032,145.35,145.31,1.4759519]
[1750745104668,5.57587,145.32,145.31,1.4759519]
[1750745105673,5.57587,145.32,145.23,155.88550297]
[1750745105674,5.57587,145.32,145.27,8.5]
[1750745105877,5.57587,145.28,145.27,8.5]
[1750745106075,2.75022392,145.35,145.28,8.5]
[1750745106398,6.88003081,145.35,145.29,8.5]
[1750745106598,6.87960218,145.36,145.3,8.5]
[1750745106773,6.62,145.34,145.29,8.5]
[1750745107090,6.62,145.34,145.28,8.5]
[1750745107284,6.62,145.34,145.27,8.5]
[1750745107487,6.62,145.34,145.21,121.8017]
[1750745107488,9.3140931,145.3,145.24,8.5]
[1750745107671,6.62,145.29,145.26,8.5]
[1750745107875,9.3140931,145.27,145.26,8.5]
[1750745108597,15.9340931,145.3,145.26,8.5]
[1750745108782,9.3140931,145.27,145.26,8.5]
[1750745109185,9.3140931,145.27,145.25,8.5]
[1750745109386,9.3140931,145.26,145.22,8.5]
[1750745109586,9.3140931,145.23,145.22,8.5]
[1750745110585,9.3140931,145.23,145.19,8.5]
[1750745110779,9.3140931,145.2,145.19,8.5]
[1750745111289,9.3140931,145.2,145.18,8.5]
[1750745111484,9.3140931,145.19,145.17,8.5]
[1750745111693,6.62,145.23,145.16,8.5]
[1750745111910,6.62,145.23,145.15,8.5]
[1750745112093,9.3140931,145.16,145.14,8.5]
[1750745112296,15.9340931,145.15,145.08,238.4]
[1750745112610,9.3140931,145.12,145.07,6.3281]
[1750745113112,9.3140931,145.11,145.07,6.3281]
[1750745113282,9.3140931,145.1,145.04,70.40751289]
[1750745113604,9.3140931,145.1,145.06,9.3140931]
[1750745113788,9.3140931,145.11,145.06,9.3140931]
[1750745114110,34.85089031,145.2,145.09,9.3140931]
[1750745114313,34.85089031,145.2,145.06,18.64964886]
[1750745114314,9.3140931,145.15,145.06,18.64964886]
[1750745114516,9.3140931,145.15,145.1,9.3140931]
[1750745114675,9.3140931,145.16,145.11,9.3140931]
[1750745114876,9.3140931,145.18,145.07,24.12628386]
[1750745115075,9.3140931,145.17,145.13,18.64964886]
[1750745115979,9.3140931,145.19,145.15,9.3140931]
[1750745116286,9.3140931,145.2,145.16,9.3140931]
[1750745116498,9.3140931,145.2,145.17,8.0]
[1750745117005,6.62,145.23,145.2,8.0]
[1750745117301,6.62,145.23,145.22,8.0]
[1750745117874,9.3140931,145.26,145.23,8.0]
[1750745118081,9.3140931,145.25,145.22,8.0]
[1750745118278,9.3140931,145.23,145.2,8.0]
[1750745118506,9.3140931,145.23,145.21,8.0]
[1750745118715,9.3140931,145.22,145.18,8.0]
[1750745119005,6.88473008,145.25,145.19,8.0]
[1750745119006,9.3140931,145.21,145.19,8.0]
[1750745119211,9.3140931,145.2,145.19,8.0]
[1750745119506,13.50423128,145.26,145.19,8.0]
[1750745119693,9.3140931,145.22,145.19,8.0]
[1750745119894,9.3140931,145.21,145.19,8.0]
[1750745120413,9.3140931,145.21,145.17,8.0]
[1750745120580,6.88521383,145.24,145.16,8.0]
[1750745120780,9.3140931,145.19,145.16,8.0]
[1750745121509,9.3140931,145.18,145.17,8.0]
[1750745121902,6.62,145.19,145.17,8.0]
[1750745122100,15.9340931,145.19,145.17,8.0]
[1750745122893,15.9340931,145.19,145.16,8.0]
[1750745123089,15.9340931,145.19,145.17,8.0]
[1750745123599,6.62,145.19,145.17,8.0]
[1750745124507,6.62,145.19,145.18,8.0]
[1750745127319,6.88422545,145.26,145.2,8.0]
[1750745127607,9.3140931,145.22,145.2,8.0]
[1750745128314,6.62,145.25,145.2,8.0]
[1750745128613,9.3140931,145.22,145.2,8.0]
[1750745129503,9.3140931,145.23,145.2,8.0]
[1750745129809,9.3140931,145.23,145.21,8.0]
[1750745130502,9.3140931,145.23,145.2,8.0]
[1750745130814,9.3140931,145.22,145.2,8.0]
[1750745130993,9.3140931,145.22,145.21,8.0]
[1750745131392,9.3140931,145.22,145.2,8.0]
[1750745131602,9.3140931,145.22,145.21,8.0]
[1750745132220,9.3140931,145.23,145.21,8.0]
[1750745132733,9.3140931,145.23,145.2,8.0]
[1750745132895,9.3140931,145.23,145.21,8.0]
[1750745133614,9.3140931,145.23,145.2,8.0]
[1750745133809,9.3140931,145.23,145.21,8.0]
[1750745134008,9.3140931,145.23,145.2,8.0]
[1750745134309,9.3140931,145.23,145.21,8.0]
[1750745134513,9.3140931,145.23,145.2,8.0]
[1750745135222,9.3140931,145.22,145.18,8.0]
[1750745135518,9.3140931,145.21,145.19,8.0]
[1750745136008,9.3140931,145.21,145.18,8.0]
[1750745136214,9.3140931,145.21,145.19,8.0]
[1750745136417,9.3140931,145.22,145.19,8.0]
[1750745136618,6.62,145.25,145.19,8.0]
[1750745136823,9.3140931,145.23,145.19,8.0]
[1750745137230,9.3140931,145.22,145.18,8.0]
[1750745137404,9.3140931,145.2,145.19,8.0]
[1750745137610,9.3140931,145.21,145.19,8.0]
[1750745138006,9.3140931,145.22,145.19,8.0]
[1750745138207,9.3140931,145.23,145.19,8.0]
[1750745138523,9.3140931,145.22,145.2,8.0]
[1750745138724,6.62,145.25,145.2,8.0]
[1750745138929,9.3140931,145.22,145.2,8.0]
[1750745142938,9.3140931,145.21,145.19,8.0]
[1750745143111,9.3140931,145.21,145.18,8.0]
[1750745143444,9.3140931,145.21,145.19,8.0]
[1750745143600,9.3140931,145.2,145.18,8.0]
[1750745144425,9.3140931,145.21,145.18,8.0]
[1750745144624,9.3140931,145.21,145.17,8.0]
[1750745144841,9.3140931,145.21,145.18,8.0]
[1750745145855,9.3140931,145.2,145.18,8.0]
[1750745146635,8.4191848,145.23,145.18,8.0]
[1750745146844,9.3140931,145.2,145.18,8.0]
[1750745147037,9.3140931,145.2,145.17,8.0]
[1750745147848,8.4191848,145.23,145.17,8.0]
[1750745148042,9.3140931,145.2,145.18,8.0]
[1750745148237,5.59619576,145.2,145.18,8.0]
[1750745149249,5.59619576,145.19,145.16,8.0]
[1750745149419,5.59619576,145.18,145.16,8.0]
[1750745149618,5.59619576,145.18,145.17,8.0]
[1750745150033,8.41939789,145.23,145.17,8.0]
[1750745150034,5.59619576,145.19,145.17,8.0]
[1750745150553,5.59619576,145.18,145.14,8.0]
[1750745150715,13.0236,145.2,145.15,8.0]
[1750745150920,5.59619576,145.17,145.15,8.0]
[1750745151255,5.59619576,145.16,145.14,8.0]
[1750745151433,5.59619576,145.15,145.14,8.0]
[1750745151815,5.59619576,145.16,145.14,8.0]
[1750745152020,5.59619576,145.15,145.14,8.0]
[1750745152231,5.59619576,145.15,145.13,8.0]
[1750745152431,5.59619576,145.15,145.14,8.0]
[1750745154637,18.61979576,145.2,145.14,8.0]
[1750745154937,5.59619576,145.18,145.15,8.0]
[1750745155140,5.59619576,145.17,145.15,8.0]
[1750745155549,5.59619576,145.17,145.12,5.59619576]
[1750745155550,5.59619576,145.17,145.14,8.0]
[1750745155724,5.59619576,145.17,145.15,8.0]
[1750745156942,5.59619576,145.17,145.14,8.0]
[1750745157145,5.59619576,145.17,145.15,8.0]
[1750745158149,5.59619576,145.16,145.15,8.0]
[1750745158454,5.59619576,145.16,145.14,8.0]
[1750745158828,19.1232597,145.2,145.14,8.0]
[1750745159048,5.59619576,145.16,145.15,8.0]
[1750745159349,5.59619576,145.16,145.14,8.0]
[1750745160745,5.59619576,145.15,145.12,8.0]
[1750745160951,5.59619576,145.14,145.13,8.0]
[1750745162253,5.59619576,145.15,145.13,8.0]
[1750745162624,12.23619576,145.2,145.14,7.5]
[1750745162836,5.59619576,145.15,145.14,7.5]
[1750745163053,5.59619576,145.15,145.13,7.5]
[1750745163258,5.59619576,145.14,145.13,7.5]
[1750745165264,6.88807117,145.18,145.13,7.5]
[1750745165436,5.59619576,145.14,145.13,96.9]
[1750745167849,5.59619576,145.14,145.13,89.4]
[1750745168050,5.59619576,145.14,145.13,96.9]
[1750745169475,5.59619576,145.15,145.13,96.9]
[1750745170164,5.59619576,145.14,145.13,96.9]
[1750745170547,5.59619576,145.14,145.13,89.4]
[1750745170746,5.59619576,145.14,145.13,96.9]
[1750745171163,5.59619576,145.14,145.13,89.4]
[1750745171366,5.59619576,145.14,145.13,96.9]
[1750745171558,5.59619576,145.14,145.13,89.4]
[1750745171866,5.59619576,145.14,145.13,96.9]
[1750745172658,6.88822725,145.18,145.13,96.9]
[1750745172965,5.59619576,145.14,145.13,96.9]
[1750745175545,5.59619576,145.14,145.13,89.4]
[1750745176868,13.5276783,145.19,145.13,89.4]
[1750745177060,5.59619576,145.14,145.13,89.4]
[1750745177260,6.64,145.19,145.13,96.9]
[1750745177794,6.64,145.18,145.13,96.9]
[1750745178077,5.59619576,145.16,145.13,96.9]
[1750745178849,6.64,145.18,145.13,96.9]
[1750745179046,5.59619576,145.16,145.13,96.9]
[1750745179259,5.59619576,145.16,145.13,89.4]
[1750745179575,6.64,145.18,145.13,89.4]
[1750745179576,5.59619576,145.14,145.13,89.4]
[1750745180261,5.59619576,145.15,145.13,96.9]
[1750745180461,5.59619576,145.15,145.13,89.4]
[1750745180661,5.59619576,145.15,145.13,96.9]
[1750745181171,5.59619576,145.15,145.13,89.4]
[1750745181374,5.59619576,145.15,145.13,96.9]
[1750745181971,5.59619576,145.15,145.13,89.4]
[1750745182275,5.59619576,145.15,145.13,96.9]
[1750745183474,5.59619576,145.14,145.13,89.4]
[1750745186275,5.59619576,145.15,145.13,96.9]
[1750745186663,5.59619576,145.15,145.13,89.4]
[1750745186864,5.59619576,145.14,145.13,96.9]
[1750745187064,5.59619576,145.14,145.13,89.4]
[1750745187881,5.59619576,145.15,145.13,89.4]
[1750745188087,5.59619576,145.14,145.13,89.4]
[1750745193801,12.48609516,145.14,145.1,89.4]
[1750745194095,5.59619576,145.11,145.1,89.4]
[1750745194766,5.59619576,145.11,145.07,89.4]
[1750745194966,5.59619576,145.08,145.07,89.4]
[1750745195189,6.6,145.11,145.04,7.5]
[1750745195373,6.6,145.11,145.04,89.4]
[1750745195374,5.59619576,145.05,145.04,89.4]
[1750745195581,5.59619576,145.06,145.04,96.9]
[1750745195889,5.59619576,145.06,145.05,7.5]
[1750745196191,5.59619576,145.07,145.05,7.5]
[1750745196379,6.6,145.11,145.06,7.5]
[1750745196380,5.59619576,145.09,145.06,7.5]
[1750745196577,5.59619576,145.09,145.07,7.5]
[1750745198098,20.16514886,145.16,145.07,96.9]
[1750745198099,5.59619576,145.1,145.07,96.9]
[1750745198282,5.59619576,145.11,145.09,7.5]
[1750745198482,5.59619576,145.12,145.09,96.9]
[1750745199094,5.59619576,145.13,145.11,7.5]
[1750745199505,5.59619576,145.14,145.11,7.5]
[1750745200076,6.6,145.15,145.11,13.09619576]
[1750745200077,5.59619576,145.15,145.11,13.09619576]
[1750745200402,7.13733288,145.16,145.12,7.5]
[1750745200606,5.59619576,145.15,145.12,7.5]
[1750745201380,7.13733288,145.16,145.12,7.5]
[1750745201614,12.73352864,145.16,145.13,26.14964886]
[1750745201778,7.13733288,145.16,145.14,7.5]
[1750745202375,7.13733288,145.16,145.15,31.74584462]
[1750745202602,7.13733288,145.16,145.15,26.14964886]
[1750745202910,7.13733288,145.16,145.15,60.88584462]
[1750745203280,5.59619576,145.23,145.2,7.5]
[1750745203483,5.59619576,145.23,145.21,18.64964886]
[1750745203685,5.59619576,145.24,145.22,7.5]
[1750745204007,5.59619576,145.24,145.2,24.24584462]
[1750745204008,6.96097738,145.28,145.23,7.5]
[1750745204215,5.59619576,145.25,145.23,7.5]
[1750745204413,5.59619576,145.26,145.23,7.5]
[1750745204578,5.59619576,145.27,145.26,7.5]
[1750745205315,5.59619576,145.27,145.21,29.14]
[1750745205316,5.59619576,145.27,145.23,7.5]
[1750745205500,6.96097738,145.28,145.23,7.5]
[1750745205501,5.59619576,145.24,145.23,7.5]
[1750745205900,5.59619576,145.24,145.22,7.5]
[1750745206698,19.44048745,145.28,145.21,7.5]
[1750745206699,5.59619576,145.23,145.21,7.5]
[1750745207001,5.59619576,145.22,145.2,7.5]
[1750745207200,5.59619576,145.21,145.2,7.5]
[1750745207831,5.59619576,145.21,145.18,7.5]
[1750745208103,5.59619576,145.19,145.15,7.5]
[1750745208307,5.59619576,145.2,145.11,13.72619576]
[1750745208308,5.59619576,145.16,145.14,7.5]
[1750745208785,5.59619576,145.16,145.15,7.5]
[1750745210602,5.59619576,145.17,145.16,7.5]
[1750745211004,6.6,145.21,145.18,7.5]
[1750745211210,5.59619576,145.19,145.18,7.5]
[1750745212013,5.59619576,145.2,145.18,7.5]
[1750745212214,5.59619576,145.2,145.19,7.5]
[1750745212824,6.6,145.21,145.2,7.5]
[1750745213115,12.19619576,145.21,145.2,7.5]
[1750745213694,12.19619576,145.21,145.2,96.9]
[1750745213891,5.59619576,145.23,145.2,245.9]
[1750745214121,5.59619576,145.21,145.19,7.5]
[1750745214329,9.32844106,145.2,145.19,7.5]
[1750745214626,10.14931139,145.26,145.21,7.5]
[1750745214929,9.32844106,145.22,145.2,7.5]
[1750745215087,9.32844106,145.21,145.19,7.5]
[1750745215295,6.88480187,145.25,145.2,7.5]
[1750745215595,10.14944217,145.26,145.2,7.5]
[1750745215796,10.14944217,145.26,145.21,7.5]
[1750745216005,1.522,145.26,145.21,7.5]
[1750745216397,9.32844106,145.22,145.21,7.5]
[1750745218738,1.522,145.26,145.22,7.5]
[1750745218739,9.32844106,145.23,145.22,7.5]
[1750745218935,1.522,145.26,145.22,96.9]
[1750745219219,9.32844106,145.25,145.23,7.5]
[1750745219422,6.96097738,145.28,145.22,245.9]
[1750745219423,9.32844106,145.24,145.22,245.9]
[1750745219638,9.32844106,145.23,145.22,245.9]
[1750745219798,9.32844106,145.23,145.22,89.4]
[1750745220097,9.32844106,145.23,145.22,96.9]
[1750745220610,13.84430008,145.28,145.22,96.9]
[1750745220611,13.84430008,145.28,145.23,7.5]
[1750745220808,9.32844106,145.24,145.23,96.9]
[1750745221018,9.32844106,145.25,145.23,96.9]
[1750745221335,6.96097738,145.28,145.25,7.5]
[1750745221502,6.96097738,145.28,145.27,7.5]
[1750745221917,9.32844106,145.29,145.27,7.5]
[1750745222306,9.32844106,145.3,145.28,7.5]
[1750745222511,9.32844106,145.31,145.29,7.5]
[1750745222866,6.6,145.33,145.31,7.5]
[1750745222867,9.32844106,145.32,145.31,7.5]
[1750745224303,9.32844106,145.32,145.3,7.5]
[1750745224637,9.32844106,145.32,145.31,7.5]
[1750745226015,6.6,145.33,145.31,7.5]
[1750745226225,9.32844106,145.32,145.31,7.5]
[1750745226422,8.1915,145.38,145.32,7.5]
[1750745226626,9.32844106,145.33,145.29,7.5]
[1750745226824,18.64964886,145.37,145.29,7.5]
[1750745227030,9.32844106,145.3,145.29,7.5]
[1750745227216,9.32844106,145.3,145.28,7.5]
[1750745227416,9.32844106,145.3,145.28,96.9]
[1750745227746,9.32844106,145.3,145.29,7.5]
[1750745227944,6.87947165,145.36,145.29,96.9]
[1750745228114,9.32844106,145.3,145.29,96.9]
[1750745229640,9.32844106,145.31,145.3,7.5]
[1750745231425,9.32844106,145.31,145.29,96.9]
[1750745231632,9.32844106,145.3,145.29,89.4]
[1750745231829,9.32844106,145.3,145.29,96.9]
[1750745232230,9.32844106,145.3,145.29,89.4]
[1750745232741,9.32844106,145.3,145.29,96.9]
[1750745233125,9.32844106,145.31,145.29,96.9]
[1750745233321,6.87999875,145.35,145.31,80.07155894]
[1750745233522,9.32844106,145.32,145.31,80.07155894]
[1750745234640,16.20980632,145.32,145.31,80.07155894]
[1750745236218,12.47105358,145.32,145.31,80.07155894]
[1750745237158,5.58968832,145.32,145.31,80.07155894]
[1750745237320,12.47105358,145.32,145.31,80.07155894]
[1750745237524,5.58968832,145.32,145.31,80.07155894]
[1750745239645,12.47105358,145.32,145.31,80.07155894]
[1750745239832,12.47105358,145.32,145.26,87.57155894]
[1750745240165,5.58968832,145.27,145.26,87.57155894]
[1750745240448,6.6,145.31,145.27,80.07155894]
[1750745241040,6.6,145.31,145.28,7.5]
[1750745241244,6.6,145.31,145.27,87.57155894]
[1750745241554,5.58968832,145.28,145.27,80.07155894]
[1750745242339,11.17937664,145.28,145.27,80.07155894]
[1750745243552,5.58968832,145.28,145.27,80.07155894]
[1750745245758,5.58968832,145.28,145.25,7.5]
[1750745245934,5.58968832,145.27,145.25,7.5]
[1750745246128,1.556,145.35,145.29,7.5]
[1750745246332,6.6,145.37,145.33,7.5]
[1750745246548,5.58968832,145.34,145.33,87.57155894]
[1750745246860,5.58968832,145.34,145.33,7.5]
[1750745247060,5.58968832,145.34,145.32,7.5]
[1750745247238,5.58968832,145.33,145.3,7.5]
[1750745247441,5.58968832,145.31,145.3,87.57155894]
[1750745247748,5.58968832,145.32,145.3,87.57155894]
[1750745248128,5.58968832,145.32,145.31,7.5]
[1750745248335,5.58968832,145.32,145.3,87.57155894]
[1750745249267,5.58968832,145.32,145.31,7.5]
[1750745249640,5.58968832,145.32,145.3,80.07155894]
[1750745249641,5.58968832,145.33,145.32,7.5]
[1750745250040,5.58968832,145.34,145.32,7.5]
[1750745250240,5.58968832,145.33,145.32,7.5]
[1750745252173,5.58968832,145.33,145.31,7.5]
[1750745252483,5.58968832,145.36,145.32,7.5]
[1750745252642,5.58968832,145.36,145.32,87.57155894]
[1750745253075,5.58968832,145.36,145.32,80.07155894]
[1750745253281,12.46922443,145.36,145.32,80.07155894]
[1750745253777,5.58968832,145.33,145.32,80.07155894]
[1750745253947,5.58968832,145.33,145.3,87.57155894]
[1750745254269,5.58968832,145.31,145.3,80.07155894]
[1750745254842,5.58968832,145.36,145.31,7.5]
[1750745255078,5.58968832,145.33,145.31,7.5]
[1750745255344,5.58968832,145.32,145.31,87.57155894]
[1750745255872,5.58968832,145.32,145.31,80.07155894]
[1750745256073,5.58968832,145.36,145.3,7.5]
[1750745256240,5.58968832,145.32,145.31,7.5]
[1750745256440,5.58968832,145.32,145.31,80.07155894]
[1750745256647,12.46923842,145.36,145.31,80.07155894]
[1750745256848,5.58968832,145.32,145.31,80.07155894]
[1750745257770,5.58968832,145.32,145.31,87.57155894]
[1750745258673,5.58968832,145.37,145.36,7.5]
[1750745258975,5.58968832,145.37,145.35,7.5]
[1750745259176,5.58968832,145.37,145.32,5.58968832]
[1750745259177,5.58968832,145.37,145.36,7.5]
[1750745259472,5.58968832,145.38,145.36,7.5]
[1750745259664,5.58968832,145.38,145.35,7.5]
[1750745259867,5.58968832,145.37,145.35,7.5]
[1750745260250,5.58968832,145.36,145.35,7.5]
[1750745260970,5.58968832,145.36,145.34,7.5]
[1750745262675,5.58968832,145.37,145.35,7.5]
[1750745263067,5.58968832,145.37,145.36,7.5]
[1750745263251,5.58968832,145.38,145.36,7.5]
[1750745263581,7.41171621,145.39,145.37,7.5]
[1750745263950,13.00140453,145.39,145.37,7.5]
[1750745264358,3.00140453,145.39,145.37,87.57155894]
[1750745264764,5.58968832,145.4,145.37,87.57155894]
[1750745264983,5.58968832,145.4,145.38,7.5]
[1750745267594,12.18968832,145.41,145.39,7.5]
[1750745268092,44.68,145.43,145.4,7.5]
[1750745268093,5.58968832,145.43,145.4,7.5]
[1750745268392,8.2455,145.46,145.42,7.5]
[1750745268393,5.58968832,145.44,145.42,7.5]
[1750745268595,5.58968832,145.43,145.4,7.5]
[1750745268780,5.58968832,145.41,145.38,87.57155894]
[1750745268983,5.58968832,145.4,145.38,7.5]
[1750745269798,5.58968832,145.4,145.39,7.5]
[1750745271494,5.58968832,145.4,145.38,7.5]
[1750745271800,5.58968832,145.39,145.36,7.5]
[1750745272099,5.58968832,145.39,145.35,229.07155894]
[1750745272100,12.46553003,145.44,145.38,7.5]
[1750745273084,12.46553003,145.44,145.38,87.57155894]
[1750745273298,5.58968832,145.39,145.38,87.57155894]
[1750745273598,13.79468832,145.39,145.34,7.5]
[1750745273907,5.58968832,145.35,145.34,80.07155894]
[1750745274208,5.58968832,145.35,145.33,80.07155894]
[1750745274407,5.58968832,145.34,145.33,80.07155894]
[1750745275102,5.58968832,145.34,145.33,87.57155894]
[1750745275688,5.58968832,145.34,145.33,80.07155894]
[1750745275889,5.58968832,145.34,145.33,87.57155894]
[1750745277784,6.6,145.38,145.34,7.5]
[1750745277990,5.58968832,145.35,145.34,87.57155894]
[1750745278308,5.58968832,145.35,145.34,80.07155894]
[1750745278690,5.58968832,145.35,145.34,87.57155894]
[1750745278887,6.6,145.38,145.34,80.07155894]
[1750745279091,5.58968832,145.35,145.34,87.57155894]
[1750745279700,5.58968832,145.35,145.34,80.07155894]
[1750745279897,5.58968832,145.35,145.34,87.57155894]
[1750745281382,5.58968832,145.35,145.34,80.07155894]
[1750745281585,5.58968832,145.35,145.34,87.57155894]
[1750745283105,6.6,145.38,145.35,7.5]
[1750745283399,5.58968832,145.36,145.35,87.57155894]
[1750745284296,5.58968832,145.36,145.35,80.07155894]
[1750745287315,5.58968832,145.36,145.35,87.57155894]
[1750745287608,5.58968832,145.39,145.38,7.5]
[1750745287813,5.58968832,145.4,145.39,7.5]
[1750745288308,8.121,145.43,145.4,7.5]
[1750745288612,5.58968832,145.41,145.4,7.5]
[1750745289312,5.58968832,145.41,145.39,7.5]
[1750745289517,5.58968832,145.4,145.38,7.5]
[1750745289817,5.58968832,145.4,145.36,80.07155894]